[Event "*** SCC Grand Prix: Titled Tuesday Blitz"]
[Site "Chess.com"]
[Date "2020.06.02"]
[Round "5"]
[White "avantage_ru"]
[Black "gross-aleks"]
[Result "1/2-1/2"]
[WhiteElo "2715"]
[BlackElo "2558"]
[TimeControl "180+1"]
[EndTime "11:00:28 PDT"]
[Termination "Game drawn - insufficient material"]

1. Nc3 {[%clk 0:03:00.9]} 1... Nf6 {[%clk 0:02:59.3]} 2. Nf3 {[%clk 0:02:59.8]}
2... d5 {[%clk 0:02:58.2]} 3. g3 {[%clk 0:02:59.7]} 3... c5 {[%clk 0:02:57]} 4.
Bg2 {[%clk 0:02:59.7]} 4... d4 {[%clk 0:02:56.3]} 5. Nb5 {[%clk 0:02:58.7]} 5...
Nc6 {[%clk 0:02:54.3]} 6. O-O {[%clk 0:02:57.9]} 6... e5 {[%clk 0:02:54]} 7. d3
{[%clk 0:02:57.2]} 7... Be7 {[%clk 0:02:52.7]} 8. c3 {[%clk 0:02:54.1]} 8...
dxc3 {[%clk 0:02:44.5]} 9. bxc3 {[%clk 0:02:52.2]} 9... a6 {[%clk 0:02:43.8]}
10. Na3 {[%clk 0:02:51.8]} 10... e4 {[%clk 0:02:43.7]} 11. Ng5 {[%clk
0:02:45.6]} 11... exd3 {[%clk 0:02:39.9]} 12. exd3 {[%clk 0:02:39.8]} 12... O-O
{[%clk 0:02:23.5]} 13. Nc4 {[%clk 0:02:36.8]} 13... Bg4 {[%clk 0:02:20.7]} 14.
Qc2 {[%clk 0:02:28.4]} 14... Rc8 {[%clk 0:02:14.4]} 15. a4 {[%clk 0:02:27.7]}
15... Bf5 {[%clk 0:02:06.6]} 16. Ne4 {[%clk 0:02:26.2]} 16... b5 {[%clk
0:01:59.1]} 17. axb5 {[%clk 0:02:25.3]} 17... axb5 {[%clk 0:02:00]} 18. Ne3
{[%clk 0:02:25.4]} 18... Be6 {[%clk 0:01:49.3]} 19. Ra6 {[%clk 0:02:18.8]} 19...
Nxe4 {[%clk 0:01:42.3]} 20. dxe4 {[%clk 0:02:16.7]} 20... b4 {[%clk 0:01:38.3]}
21. Rd1 {[%clk 0:02:14.5]} 21... Qc7 {[%clk 0:01:29.3]} 22. Nd5 {[%clk
0:02:10.4]} 22... Qb7 {[%clk 0:01:29.1]} 23. Rb6 {[%clk 0:02:09.6]} 23... Qa7
{[%clk 0:01:24.3]} 24. Rb5 {[%clk 0:01:32.5]} 24... Rb8 {[%clk 0:00:57]} 25.
Rxb8 {[%clk 0:01:13.2]} 25... Rxb8 {[%clk 0:00:55]} 26. cxb4 {[%clk 0:01:13.3]}
26... Nxb4 {[%clk 0:00:53]} 27. Qc3 {[%clk 0:01:04.5]} 27... Bf8 {[%clk
0:00:51.5]} 28. Be3 {[%clk 0:01:02.5]} 28... Qa5 {[%clk 0:00:48.6]} 29. h4
{[%clk 0:00:53.7]} 29... Bg4 {[%clk 0:00:44]} 30. Ra1 {[%clk 0:00:52.1]} 30...
Qb5 {[%clk 0:00:37.5]} 31. Ra7 {[%clk 0:00:48.8]} 31... Nc6 {[%clk 0:00:23.4]}
32. Rc7 {[%clk 0:00:21.8]} 32... Bd6 {[%clk 0:00:19.4]} 33. Bh6 {[%clk
0:00:21.5]} 33... Bf8 {[%clk 0:00:15.1]} 34. e5 {[%clk 0:00:16.6]} 34... Qb1+
{[%clk 0:00:13.5]} 35. Kh2 {[%clk 0:00:16]} 35... Nd4 {[%clk 0:00:13.5]} 36. Qc1
{[%clk 0:00:09.1]} 36... Qxc1 {[%clk 0:00:13.1]} 37. Bxc1 {[%clk 0:00:09]} 37...
Nf3+ {[%clk 0:00:14]} 38. Bxf3 {[%clk 0:00:07]} 38... Bxf3 {[%clk 0:00:14]} 39.
Nc3 {[%clk 0:00:07.3]} 39... Rb3 {[%clk 0:00:13.6]} 40. Bd2 {[%clk 0:00:07.3]}
40... Rb2 {[%clk 0:00:13.1]} 41. Be3 {[%clk 0:00:07.6]} 41... Rc2 {[%clk
0:00:11.8]} 42. Nb5 {[%clk 0:00:07.6]} 42... Re2 {[%clk 0:00:11.2]} 43. Nd6
{[%clk 0:00:06.7]} 43... Re1 {[%clk 0:00:11]} 44. g4 {[%clk 0:00:07]} 44... Rg1
{[%clk 0:00:09.8]} 45. Bxc5 {[%clk 0:00:05.5]} 45... Rg2+ {[%clk 0:00:09.6]} 46.
Kh3 {[%clk 0:00:05.7]} 46... h5 {[%clk 0:00:09.6]} 47. gxh5 {[%clk 0:00:04.8]}
47... Rg1 {[%clk 0:00:09.2]} 48. Nxf7 {[%clk 0:00:03.7]} 48... Bxh5 {[%clk
0:00:09.3]} 49. Ng5 {[%clk 0:00:02.7]} 49... Bg4+ {[%clk 0:00:07.9]} 50. Kh2
{[%clk 0:00:03.2]} 50... Rc1 {[%clk 0:00:08.1]} 51. e6 {[%clk 0:00:03.7]} 51...
Rxc5 {[%clk 0:00:07.7]} 52. e7 {[%clk 0:00:04.3]} 52... Bxe7 {[%clk 0:00:05.2]}
53. Rxe7 {[%clk 0:00:05.2]} 53... Rc8 {[%clk 0:00:04.5]} 54. Kg3 {[%clk
0:00:04.7]} 54... Bh5 {[%clk 0:00:04.8]} 55. f3 {[%clk 0:00:05.2]} 55... Rc6
{[%clk 0:00:04.2]} 56. Ra7 {[%clk 0:00:05.7]} 56... Rc8 {[%clk 0:00:04]} 57. Nh3
{[%clk 0:00:05.5]} 57... Bf7 {[%clk 0:00:04.2]} 58. Nf4 {[%clk 0:00:05.9]} 58...
Rc5 {[%clk 0:00:04.3]} 59. Nh3 {[%clk 0:00:06.2]} 59... Rc4 {[%clk 0:00:04.6]}
60. Ng5 {[%clk 0:00:06.7]} 60... Be8 {[%clk 0:00:05.1]} 61. Ra8 {[%clk 0:00:07]}
61... Kf8 {[%clk 0:00:05.9]} 62. h5 {[%clk 0:00:06.4]} 62... Rc6 {[%clk
0:00:05.4]} 63. f4 {[%clk 0:00:05.9]} 63... Ke7 {[%clk 0:00:05.2]} 64. Kh4
{[%clk 0:00:06.2]} 64... Bd7 {[%clk 0:00:05.5]} 65. Ra7 {[%clk 0:00:06.7]} 65...
Rc4 {[%clk 0:00:05.5]} 66. Nh3 {[%clk 0:00:05.6]} 66... Rc3 {[%clk 0:00:05.8]}
67. Nf2 {[%clk 0:00:04.9]} 67... Rc4 {[%clk 0:00:06.7]} 68. Kg5 {[%clk
0:00:04.5]} 68... Rc5+ {[%clk 0:00:07]} 69. Kh4 {[%clk 0:00:05]} 69... Rf5
{[%clk 0:00:07.5]} 70. Kg3 {[%clk 0:00:05]} 70... Rxh5 {[%clk 0:00:07.1]} 71.
Ng4 {[%clk 0:00:05.4]} 71... Rd5 {[%clk 0:00:07.5]} 72. Ne5 {[%clk 0:00:05.8]}
72... Ke6 {[%clk 0:00:08.3]} 73. Kh4 {[%clk 0:00:06.3]} 73... Rd4 {[%clk
0:00:05.8]} 74. Kg5 {[%clk 0:00:06.8]} 74... Rd5 {[%clk 0:00:06.2]} 75. Rxd7
{[%clk 0:00:07.4]} 75... Rxd7 {[%clk 0:00:06.3]} 76. Nxd7 {[%clk 0:00:08.3]}
76... Kxd7 {[%clk 0:00:06.7]} 77. Kg6 {[%clk 0:00:08.9]} 77... Ke6 {[%clk
0:00:06.9]} 78. Kxg7 {[%clk 0:00:08.2]} 78... Kf5 {[%clk 0:00:07]} 79. Kf7
{[%clk 0:00:08.3]} 79... Kxf4 {[%clk 0:00:07.9]} 1/2-1/2

[Event "*** SCC Grand Prix: Titled Tuesday Blitz"]
[Site "Chess.com"]
[Date "2020.06.02"]
[Round "5"]
[White "AlanZhang"]
[Black "canary2016"]
[Result "1-0"]
[WhiteElo "2219"]
[BlackElo "1959"]
[TimeControl "180+1"]
[EndTime "11:00:29 PDT"]
[Termination "AlanZhang won on time"]

1. e4 {[%clk 0:03:00.9]} 1... c6 {[%clk 0:02:51.3]} 2. d4 {[%clk 0:02:59.7]}
2... d5 {[%clk 0:02:49.6]} 3. Nc3 {[%clk 0:03:00.2]} 3... dxe4 {[%clk
0:02:48.7]} 4. Nxe4 {[%clk 0:03:01.1]} 4... Nf6 {[%clk 0:02:48]} 5. Nxf6+ {[%clk
0:03:01]} 5... exf6 {[%clk 0:02:47.8]} 6. g3 {[%clk 0:03:01.6]} 6... Bd6 {[%clk
0:02:47]} 7. Bg2 {[%clk 0:03:01.5]} 7... O-O {[%clk 0:02:46.7]} 8. Ne2 {[%clk
0:03:01.5]} 8... Re8 {[%clk 0:02:45.9]} 9. O-O {[%clk 0:03:01.1]} 9... Bg4
{[%clk 0:02:43.1]} 10. Re1 {[%clk 0:02:58.6]} 10... Nd7 {[%clk 0:02:42.5]} 11.
Qd3 {[%clk 0:02:56]} 11... Qc7 {[%clk 0:02:36.4]} 12. Be3 {[%clk 0:02:49]} 12...
Rad8 {[%clk 0:02:34.7]} 13. h3 {[%clk 0:02:43.9]} 13... Bh5 {[%clk 0:02:33.5]}
14. Nf4 {[%clk 0:02:42.4]} 14... Bg6 {[%clk 0:02:32.6]} 15. Nxg6 {[%clk
0:02:41.3]} 15... hxg6 {[%clk 0:02:32]} 16. c3 {[%clk 0:02:40.8]} 16... c5
{[%clk 0:02:29.4]} 17. Rad1 {[%clk 0:01:47.9]} 17... cxd4 {[%clk 0:02:27.1]} 18.
Bxd4 {[%clk 0:01:48.8]} 18... Nc5 {[%clk 0:02:23.1]} 19. Qb5 {[%clk 0:01:39.6]}
19... Rxe1+ {[%clk 0:02:10.8]} 20. Rxe1 {[%clk 0:01:40.5]} 20... a6 {[%clk
0:02:10.8]} 21. Qc4 {[%clk 0:01:15.8]} 21... b5 {[%clk 0:02:07.1]} 22. Qe2
{[%clk 0:00:48.6]} 22... Ne6 {[%clk 0:02:00.1]} 23. Be3 {[%clk 0:00:43.8]} 23...
Bc5 {[%clk 0:01:53.9]} 24. b4 {[%clk 0:00:25]} 24... Bb6 {[%clk 0:01:51.1]} 25.
Bxb6 {[%clk 0:00:21.4]} 25... Qxb6 {[%clk 0:01:50]} 26. Rd1 {[%clk 0:00:21.9]}
26... Rd6 {[%clk 0:01:43.6]} 27. Rd3 {[%clk 0:00:12.8]} 27... Qc7 {[%clk
0:01:42.4]} 28. Qd2 {[%clk 0:00:11.1]} 28... Rxd3 {[%clk 0:01:40.4]} 29. Qxd3
{[%clk 0:00:12]} 29... Qb6 {[%clk 0:01:36]} 30. Bd5 {[%clk 0:00:08]} 30... Nc7
{[%clk 0:01:33.9]} 31. Be4 {[%clk 0:00:06.7]} 31... Ne6 {[%clk 0:01:33.6]} 32.
Kg2 {[%clk 0:00:05.8]} 32... Ng5 {[%clk 0:01:32.4]} 33. Bd5 {[%clk 0:00:05]}
33... Qc7 {[%clk 0:01:28.6]} 34. h4 {[%clk 0:00:04.5]} 34... Nh7 {[%clk
0:01:24.9]} 35. Bf3 {[%clk 0:00:04.9]} 35... Nf8 {[%clk 0:01:23.9]} 36. Qe3
{[%clk 0:00:04.6]} 36... Ne6 {[%clk 0:01:22.7]} 37. Bd1 {[%clk 0:00:04.8]} 37...
Qc6+ {[%clk 0:01:21.5]} 38. Bf3 {[%clk 0:00:04.9]} 38... Qc7 {[%clk 0:01:21.2]}
39. Bd5 {[%clk 0:00:04.8]} 39... Nf8 {[%clk 0:01:19]} 40. f4 {[%clk 0:00:04]}
40... Qb8 {[%clk 0:01:16.8]} 41. Qc5 {[%clk 0:00:04.3]} 41... Qd8 {[%clk
0:01:13.7]} 42. Qc6 {[%clk 0:00:04.3]} 42... Qe7 {[%clk 0:01:10.7]} 43. Be4
{[%clk 0:00:03.2]} 43... Qe6 {[%clk 0:01:08.9]} 44. Qxe6 {[%clk 0:00:02.6]}
44... Nxe6 {[%clk 0:01:08.8]} 45. Bb7 {[%clk 0:00:03]} 45... Nc7 {[%clk
0:01:06.9]} 46. Kf3 {[%clk 0:00:03.5]} 46... Kf8 {[%clk 0:01:06.7]} 47. Ke4
{[%clk 0:00:03.7]} 47... Ke7 {[%clk 0:01:06.7]} 48. Kd4 {[%clk 0:00:04.2]} 48...
Kd6 {[%clk 0:01:06.6]} 49. g4 {[%clk 0:00:03.1]} 49... Ne6+ {[%clk 0:01:03.1]}
50. Ke4 {[%clk 0:00:03.5]} 50... Nc7 {[%clk 0:01:01.4]} 51. f5 {[%clk
0:00:02.9]} 51... Kd7 {[%clk 0:00:49.2]} 52. h5 {[%clk 0:00:02.1]} 52... gxh5
{[%clk 0:00:44.8]} 53. gxh5 {[%clk 0:00:03]} 53... Kd6 {[%clk 0:00:44.4]} 54.
Kd4 {[%clk 0:00:03.6]} 54... Kd7 {[%clk 0:00:21.2]} 55. Kc5 {[%clk 0:00:04.5]}
55... Kd8 {[%clk 0:00:20.3]} 56. Kb6 {[%clk 0:00:04.4]} 56... Kd7 {[%clk
0:00:20]} 57. Bc6+ {[%clk 0:00:04.1]} 57... Kd6 {[%clk 0:00:19.4]} 58. Bb7
{[%clk 0:00:02.9]} 58... Ne8 {[%clk 0:00:17.4]} 59. Bxa6 {[%clk 0:00:03]} 59...
Nc7 {[%clk 0:00:16.9]} 60. Bc8 {[%clk 0:00:02.6]} 60... Nd5+ {[%clk 0:00:16.5]}
61. Kxb5 {[%clk 0:00:03.2]} 61... Nxc3+ {[%clk 0:00:16.2]} 62. Kc4 {[%clk
0:00:03.7]} 62... Nxa2 {[%clk 0:00:15.8]} 63. b5 {[%clk 0:00:03.4]} 63... Nc1
{[%clk 0:00:14.3]} 64. b6 {[%clk 0:00:02.8]} 64... Kc6 {[%clk 0:00:13.2]} 65. b7
{[%clk 0:00:02.6]} 65... Kc7 {[%clk 0:00:12.8]} 66. Kb5 {[%clk 0:00:02.3]} 66...
Nd3 {[%clk 0:00:11.7]} 67. Ka6 {[%clk 0:00:02.3]} 67... Nc5+ {[%clk 0:00:11.3]}
68. Ka7 {[%clk 0:00:02.3]} 68... Nxb7 {[%clk 0:00:08.5]} 69. Bxb7 {[%clk
0:00:02.7]} 69... Kd6 {[%clk 0:00:08.4]} 70. Be4 {[%clk 0:00:02.9]} 70... Ke5
{[%clk 0:00:08.1]} 71. Bc2 {[%clk 0:00:02.3]} 71... Kf4 {[%clk 0:00:08]} 72. Bb3
{[%clk 0:00:02.7]} 72... Kg5 {[%clk 0:00:07.7]} 73. Bxf7 {[%clk 0:00:03.3]}
73... Kxf5 {[%clk 0:00:06.7]} 74. Kb6 {[%clk 0:00:03.1]} 74... Kg5 {[%clk
0:00:06.5]} 75. Kc5 {[%clk 0:00:03.6]} 75... f5 {[%clk 0:00:06.3]} 76. Kd4
{[%clk 0:00:04.1]} 76... Kf6 {[%clk 0:00:06.2]} 77. Bg6 {[%clk 0:00:03.6]} 77...
Kg5 {[%clk 0:00:05.6]} 78. Ke5 {[%clk 0:00:03.3]} 78... f4 {[%clk 0:00:05.4]}
79. Ke4 {[%clk 0:00:03.5]} 79... Kg4 {[%clk 0:00:05.2]} 80. Kd3 {[%clk
0:00:03.7]} 80... Kg3 {[%clk 0:00:04.9]} 81. Ke2 {[%clk 0:00:03.4]} 81... f3+
{[%clk 0:00:04.6]} 82. Kf1 {[%clk 0:00:02.7]} 82... f2 {[%clk 0:00:04.5]} 83.
Bf7 {[%clk 0:00:03.2]} 83... Kf3 {[%clk 0:00:03.1]} 84. Bd5+ {[%clk 0:00:03.5]}
84... Ke3 {[%clk 0:00:02.6]} 85. Bf7 {[%clk 0:00:03.6]} 85... Kf3 {[%clk
0:00:02]} 86. Be6 {[%clk 0:00:03.1]} 1-0

[Event "*** SCC Grand Prix: Titled Tuesday Blitz"]
[Site "Chess.com"]
[Date "2020.06.02"]
[Round "5"]
[White "Grischuk"]
[Black "A-Adly"]
[Result "1-0"]
[WhiteElo "3114"]
[BlackElo "2837"]
[TimeControl "180+1"]
[EndTime "11:00:33 PDT"]
[Termination "Grischuk won by resignation"]

1. Nf3 {[%clk 0:03:00.9]} 1... Nf6 {[%clk 0:02:58.8]} 2. c4 {[%clk 0:03:00.9]}
2... e6 {[%clk 0:02:54.1]} 3. g3 {[%clk 0:03:00.5]} 3... d5 {[%clk 0:02:53.5]}
4. Bg2 {[%clk 0:03:00.5]} 4... Be7 {[%clk 0:02:52]} 5. O-O {[%clk 0:02:58.5]}
5... O-O {[%clk 0:02:51.8]} 6. d4 {[%clk 0:02:57.1]} 6... dxc4 {[%clk
0:02:49.3]} 7. Qc2 {[%clk 0:02:56.7]} 7... a6 {[%clk 0:02:43.4]} 8. a4 {[%clk
0:02:56.2]} 8... Bd7 {[%clk 0:02:43]} 9. Qxc4 {[%clk 0:02:54.1]} 9... Bc6 {[%clk
0:02:42.4]} 10. Bg5 {[%clk 0:02:54.6]} 10... Nbd7 {[%clk 0:02:41.3]} 11. Nc3
{[%clk 0:02:51.9]} 11... h6 {[%clk 0:02:39.1]} 12. Bxf6 {[%clk 0:02:52.1]} 12...
Nxf6 {[%clk 0:02:40]} 13. Rfd1 {[%clk 0:02:52.3]} 13... a5 {[%clk 0:02:17.8]}
14. Qb3 {[%clk 0:02:52.1]} 14... Bb4 {[%clk 0:02:12.2]} 15. Ne5 {[%clk
0:02:39.6]} 15... Bxg2 {[%clk 0:02:04]} 16. Kxg2 {[%clk 0:02:40.5]} 16... c6
{[%clk 0:01:52.5]} 17. Na2 {[%clk 0:02:25]} 17... Qd5+ {[%clk 0:01:50.1]} 18.
Qxd5 {[%clk 0:02:24.9]} 18... Nxd5 {[%clk 0:01:37.5]} 19. e4 {[%clk 0:02:24.6]}
19... Nc7 {[%clk 0:01:31.8]} 20. Nxb4 {[%clk 0:02:24]} 20... axb4 {[%clk
0:01:32.7]} 21. Nd3 {[%clk 0:01:54.3]} 21... Na6 {[%clk 0:01:32.1]} 22. Kf3
{[%clk 0:01:28.8]} 22... Rfd8 {[%clk 0:01:23.2]} 23. Ke3 {[%clk 0:01:28.7]}
23... Rd7 {[%clk 0:00:55.9]} 24. Rac1 {[%clk 0:01:03.9]} 24... Rad8 {[%clk
0:00:33.6]} 25. Nc5 {[%clk 0:00:47.2]} 25... Nxc5 {[%clk 0:00:28.4]} 26. Rxc5
{[%clk 0:00:48.1]} 26... b3 {[%clk 0:00:26.5]} 27. Rd3 {[%clk 0:00:31]} 27... f6
{[%clk 0:00:25.8]} 28. Rcc3 {[%clk 0:00:29.3]} 28... Ra8 {[%clk 0:00:25.2]} 29.
Rc4 {[%clk 0:00:29.4]} 29... b5 {[%clk 0:00:25.2]} 30. axb5 {[%clk 0:00:28.7]}
30... cxb5 {[%clk 0:00:26.1]} 31. Rb4 {[%clk 0:00:28.5]} 31... Ra1 {[%clk
0:00:25.5]} 32. f3 {[%clk 0:00:20.7]} 32... Re1+ {[%clk 0:00:23.2]} 33. Kf2
{[%clk 0:00:19.1]} 33... Rc1 {[%clk 0:00:23.2]} 34. Rc3 {[%clk 0:00:11.4]} 34...
Rc2+ {[%clk 0:00:20.2]} 35. Ke3 {[%clk 0:00:09.4]} 35... Rxb2 {[%clk 0:00:20.5]}
36. Rcxb3 {[%clk 0:00:05.8]} 36... Rxh2 {[%clk 0:00:20.3]} 37. Rxb5 {[%clk
0:00:05.9]} 37... Rc2 {[%clk 0:00:20.3]} 38. Rb7 {[%clk 0:00:02.9]} 38... Rcc7
{[%clk 0:00:19.2]} 39. Rxc7 {[%clk 0:00:02.9]} 39... Rxc7 {[%clk 0:00:20]} 40.
d5 {[%clk 0:00:02.8]} 40... Kf7 {[%clk 0:00:20]} 41. f4 {[%clk 0:00:02.2]} 41...
exd5 {[%clk 0:00:18.7]} 42. exd5 {[%clk 0:00:03.1]} 42... Rc4 {[%clk 0:00:19.1]}
43. Rb7+ {[%clk 0:00:02]} 43... Kg6 {[%clk 0:00:19.5]} 44. d6 {[%clk 0:00:01.7]}
44... Rc6 {[%clk 0:00:18.3]} 45. Rd7 {[%clk 0:00:01.6]} 45... Kf5 {[%clk
0:00:17.9]} 46. Kd4 {[%clk 0:00:02.1]} 46... Ke6 {[%clk 0:00:16.5]} 47. Rxg7
{[%clk 0:00:01.6]} 47... Rxd6+ {[%clk 0:00:16.4]} 48. Ke3 {[%clk 0:00:02.3]}
48... h5 {[%clk 0:00:15.4]} 49. Rh7 {[%clk 0:00:02.7]} 49... Kf5 {[%clk
0:00:14.6]} 50. Rxh5+ {[%clk 0:00:03]} 50... Kg4 {[%clk 0:00:14.9]} 51. Rh8
{[%clk 0:00:03.6]} 51... Re6+ {[%clk 0:00:08.7]} 52. Kf2 {[%clk 0:00:03.2]}
52... Ra6 {[%clk 0:00:09.2]} 53. Rg8+ {[%clk 0:00:03.9]} 53... Kf5 {[%clk
0:00:09.6]} 54. Kg2 {[%clk 0:00:04.2]} 54... Ra2+ {[%clk 0:00:09.7]} 55. Kh3
{[%clk 0:00:04.3]} 55... Ra3 {[%clk 0:00:10.1]} 56. Rb8 {[%clk 0:00:04.3]} 56...
Ra5 {[%clk 0:00:10]} 57. Kh4 {[%clk 0:00:04.2]} 57... Rc5 {[%clk 0:00:08.9]} 58.
Rb4 {[%clk 0:00:04.3]} 58... Ra5 {[%clk 0:00:08.9]} 59. g4+ {[%clk 0:00:04.6]}
59... Kg6 {[%clk 0:00:09.4]} 60. f5+ {[%clk 0:00:04.7]} 60... Kh6 {[%clk
0:00:09.3]} 61. Rb6 {[%clk 0:00:04.8]} 61... Kg7 {[%clk 0:00:08.4]} 62. Rb7+
{[%clk 0:00:04.8]} 62... Kh6 {[%clk 0:00:07.9]} 63. Rb6 {[%clk 0:00:04.7]} 63...
Kg7 {[%clk 0:00:07.7]} 64. Kh5 {[%clk 0:00:04.8]} 64... Ra7 {[%clk 0:00:08]} 65.
Rd6 {[%clk 0:00:05.2]} 65... Rb7 {[%clk 0:00:08.1]} 66. Re6 {[%clk 0:00:05.5]}
66... Rc7 {[%clk 0:00:08.4]} 67. Kh4 {[%clk 0:00:06]} 67... Rb7 {[%clk
0:00:08.7]} 68. Rd6 {[%clk 0:00:06.5]} 68... Ra7 {[%clk 0:00:09]} 69. Kg3 {[%clk
0:00:07]} 69... Rb7 {[%clk 0:00:09.4]} 70. Kf4 {[%clk 0:00:07.6]} 70... Ra7
{[%clk 0:00:09.9]} 71. Ke4 {[%clk 0:00:08.1]} 71... Rb7 {[%clk 0:00:10.3]} 72.
Kd5 {[%clk 0:00:08.3]} 72... Rb4 {[%clk 0:00:09.8]} 73. Rd7+ {[%clk 0:00:06.6]}
73... Kh6 {[%clk 0:00:10.1]} 74. Ke6 {[%clk 0:00:07.2]} 74... Rb6+ {[%clk
0:00:06.2]} 75. Rd6 {[%clk 0:00:07.3]} 75... Rb4 {[%clk 0:00:06.5]} 76. Kxf6
{[%clk 0:00:06]} 76... Rxg4 {[%clk 0:00:07.1]} 77. Ke7+ {[%clk 0:00:04]} 77...
Kh7 {[%clk 0:00:07.4]} 78. f6 {[%clk 0:00:04.1]} 78... Ra4 {[%clk 0:00:06.1]}
79. f7 {[%clk 0:00:03.6]} 79... Re4+ {[%clk 0:00:03.7]} 80. Re6 {[%clk 0:00:03]}
80... Ra4 {[%clk 0:00:03.6]} 1-0

[Event "*** SCC Grand Prix: Titled Tuesday Blitz"]
[Site "Chess.com"]
[Date "2020.06.02"]
[Round "5"]
[White "ZAbdumalik"]
[Black "PSvidler"]
[Result "1/2-1/2"]
[WhiteElo "2664"]
[BlackElo "2978"]
[TimeControl "180+1"]
[EndTime "11:00:37 PDT"]
[Termination "Game drawn by repetition"]

1. e4 {[%clk 0:03:00.9]} 1... c5 {[%clk 0:02:59.1]} 2. Nf3 {[%clk 0:03:00.9]}
2... e6 {[%clk 0:02:59.3]} 3. d4 {[%clk 0:03:01.1]} 3... cxd4 {[%clk 0:02:59.5]}
4. Nxd4 {[%clk 0:03:01.6]} 4... a6 {[%clk 0:03:00.1]} 5. Nc3 {[%clk 0:03:01.3]}
5... b5 {[%clk 0:02:55.5]} 6. a3 {[%clk 0:03:00.8]} 6... Bb7 {[%clk 0:02:54.5]}
7. Bd3 {[%clk 0:03:00.7]} 7... Nf6 {[%clk 0:02:52.4]} 8. O-O {[%clk 0:03:00.4]}
8... d6 {[%clk 0:02:51.4]} 9. Qe2 {[%clk 0:02:56]} 9... Be7 {[%clk 0:02:48.3]}
10. f4 {[%clk 0:02:54.2]} 10... Nbd7 {[%clk 0:02:47.9]} 11. Kh1 {[%clk 0:02:53]}
11... Qc7 {[%clk 0:02:45.4]} 12. Bd2 {[%clk 0:02:51.8]} 12... O-O {[%clk
0:02:44.9]} 13. Rae1 {[%clk 0:02:50.5]} 13... Rad8 {[%clk 0:02:44.8]} 14. Nf3
{[%clk 0:02:47.8]} 14... Nc5 {[%clk 0:02:41.7]} 15. b4 {[%clk 0:02:47.2]} 15...
Nxd3 {[%clk 0:02:39.7]} 16. cxd3 {[%clk 0:02:47.3]} 16... Nd7 {[%clk 0:02:40.1]}
17. Rc1 {[%clk 0:02:46.8]} 17... Qb8 {[%clk 0:02:38.9]} 18. Be3 {[%clk
0:02:45.2]} 18... Rfe8 {[%clk 0:02:36.8]} 19. Nd4 {[%clk 0:02:42.8]} 19... Bf8
{[%clk 0:02:35.3]} 20. f5 {[%clk 0:02:43]} 20... e5 {[%clk 0:02:09.4]} 21. Nb3
{[%clk 0:02:40.8]} 21... h6 {[%clk 0:01:45.5]} 22. Bf2 {[%clk 0:01:58.3]} 22...
Rc8 {[%clk 0:01:28.3]} 23. Rc2 {[%clk 0:01:45.7]} 23... d5 {[%clk 0:01:25.2]}
24. Nxd5 {[%clk 0:01:42.2]} 24... Bxd5 {[%clk 0:01:24.9]} 25. exd5 {[%clk
0:01:42.4]} 25... Qd6 {[%clk 0:01:18.6]} 26. Nc5 {[%clk 0:01:20.7]} 26... Qxd5
{[%clk 0:01:10.9]} 27. Nxa6 {[%clk 0:01:19.3]} 27... Bd6 {[%clk 0:00:42.4]} 28.
Rfc1 {[%clk 0:01:13.8]} 28... Rxc2 {[%clk 0:00:42.1]} 29. Qxc2 {[%clk
0:01:13.8]} 29... e4 {[%clk 0:00:41.7]} 30. dxe4 {[%clk 0:01:12.7]} 30... Rxe4
{[%clk 0:00:41.2]} 31. Qc6 {[%clk 0:00:51]} 31... Qxf5 {[%clk 0:00:35.4]} 32.
Bg1 {[%clk 0:00:24.2]} 32... Bf4 {[%clk 0:00:34]} 33. Rf1 {[%clk 0:00:23.2]}
33... Nf6 {[%clk 0:00:24.2]} 34. Nc5 {[%clk 0:00:22.4]} 34... Re2 {[%clk
0:00:22]} 35. Qf3 {[%clk 0:00:21.1]} 35... Qc2 {[%clk 0:00:14.8]} 36. Qxf4
{[%clk 0:00:19.9]} 36... Rxg2 {[%clk 0:00:14.8]} 37. Qf5 {[%clk 0:00:18.1]}
37... Qe2 {[%clk 0:00:14.3]} 38. Qf3 {[%clk 0:00:18.1]} 38... Qxf3 {[%clk
0:00:13.4]} 39. Rxf3 {[%clk 0:00:18.3]} 39... Ra2 {[%clk 0:00:13.7]} 40. Bd4
{[%clk 0:00:16.7]} 40... Nd5 {[%clk 0:00:12.5]} 41. Rg3 {[%clk 0:00:16]} 41...
g5 {[%clk 0:00:12.5]} 42. Kg1 {[%clk 0:00:16]} 42... Nf4 {[%clk 0:00:12.5]} 43.
Kf1 {[%clk 0:00:13.2]} 43... Rxh2 {[%clk 0:00:11.5]} 44. Bf2 {[%clk 0:00:12.8]}
44... Rh1+ {[%clk 0:00:10.1]} 45. Rg1 {[%clk 0:00:12.8]} 45... Rh3 {[%clk
0:00:10]} 46. Rg3 {[%clk 0:00:13.1]} 46... Rh1+ {[%clk 0:00:10.1]} 47. Rg1
{[%clk 0:00:13.5]} 47... Rh3 {[%clk 0:00:09.9]} 48. a4 {[%clk 0:00:11.3]} 48...
bxa4 {[%clk 0:00:07.4]} 49. Nxa4 {[%clk 0:00:11.5]} 49... Rb3 {[%clk 0:00:06.9]}
50. Bc5 {[%clk 0:00:11.2]} 50... Rb1+ {[%clk 0:00:06.8]} 51. Kf2 {[%clk
0:00:10]} 51... Nh3+ {[%clk 0:00:07.5]} 52. Kg2 {[%clk 0:00:09.8]} 52... Nxg1
{[%clk 0:00:08.4]} 53. Bxg1 {[%clk 0:00:09.9]} 53... Rxb4 {[%clk 0:00:09]} 54.
Nc5 {[%clk 0:00:10.3]} 54... Kg7 {[%clk 0:00:09.6]} 55. Nd3 {[%clk 0:00:10.3]}
55... Rb5 {[%clk 0:00:10.1]} 56. Kf3 {[%clk 0:00:09.7]} 56... f5 {[%clk
0:00:10.7]} 57. Bd4+ {[%clk 0:00:09.9]} 57... Kf7 {[%clk 0:00:11]} 58. Ke3
{[%clk 0:00:09]} 58... Ke6 {[%clk 0:00:11.2]} 59. Bg7 {[%clk 0:00:08.4]} 59...
h5 {[%clk 0:00:11]} 60. Bh6 {[%clk 0:00:08.9]} 60... f4+ {[%clk 0:00:11]} 61.
Ke4 {[%clk 0:00:07.1]} 61... Kf6 {[%clk 0:00:11.2]} 62. Bf8 {[%clk 0:00:07]}
62... Kf7 {[%clk 0:00:10.6]} 63. Bd6 {[%clk 0:00:07.3]} 63... Ke6 {[%clk
0:00:10.5]} 64. Bc5 {[%clk 0:00:07.1]} 64... Ra5 {[%clk 0:00:10.7]} 65. Bb4
{[%clk 0:00:06.5]} 65... Ra1 {[%clk 0:00:10.3]} 66. Bc3 {[%clk 0:00:06.4]} 66...
Ra4+ {[%clk 0:00:09.9]} 67. Bd4 {[%clk 0:00:06.8]} 67... Kf7 {[%clk 0:00:09.7]}
68. Ne5+ {[%clk 0:00:07]} 68... Ke6 {[%clk 0:00:09.5]} 69. Nd3 {[%clk
0:00:07.4]} 69... Rc4 {[%clk 0:00:09.5]} 70. Nc5+ {[%clk 0:00:07.5]} 70... Kd6
{[%clk 0:00:09.5]} 71. Nd3 {[%clk 0:00:07.8]} 71... h4 {[%clk 0:00:09.8]} 72.
Ne5 {[%clk 0:00:07.6]} 72... Rxd4+ {[%clk 0:00:06.1]} 73. Kxd4 {[%clk
0:00:07.8]} 73... h3 {[%clk 0:00:06.3]} 74. Ng4 {[%clk 0:00:08]} 74... Ke6
{[%clk 0:00:05.9]} 75. Ke4 {[%clk 0:00:08.2]} 75... Kf7 {[%clk 0:00:05.5]} 76.
Kf3 {[%clk 0:00:06.4]} 76... Kg6 {[%clk 0:00:04.7]} 77. Nh2 {[%clk 0:00:06.6]}
77... Kf5 {[%clk 0:00:04.9]} 78. Ng4 {[%clk 0:00:07]} 78... Kg6 {[%clk
0:00:05.3]} 79. Nh2 {[%clk 0:00:07.3]} 79... Kh5 {[%clk 0:00:05.3]} 80. Ng4
{[%clk 0:00:07.8]} 80... Kh4 {[%clk 0:00:05.5]} 81. Nh2 {[%clk 0:00:08.2]} 81...
Kh5 {[%clk 0:00:05.7]} 82. Ng4 {[%clk 0:00:08.7]} 82... Kh4 {[%clk 0:00:06.2]}
83. Nh2 {[%clk 0:00:09.1]} 83... Kh5 {[%clk 0:00:05.4]} 1/2-1/2